bitfinex/quotes_BTCUSD_20250817
["timestamp","ask_amount","ask_price","bid_price","bid_amount"]
[1755445984808,0.003,118350.0,118340.0,1.25979016]
[1755445986493,0.003,118350.0,118340.0,1.52649016]
[1755446008609,0.003,118350.0,118340.0,1.26925883]
[1755446008610,0.00506,118350.0,118340.0,1.26925883]
[1755446008816,0.00815,118350.0,118340.0,1.26925883]
[1755446009233,0.00815,118350.0,118340.0,1.27135883]
[1755446010441,0.00815,118350.0,118340.0,1.0170375]
[1755446010669,0.00815,118350.0,118340.0,1.26921883]
[1755446010888,0.00506,118350.0,118340.0,1.27131883]
[1755446011866,0.00506,118350.0,118340.0,1.0222475]
[1755446012080,0.00506,118350.0,118340.0,1.27442883]
[1755446013874,0.003,118350.0,118340.0,1.27442883]
[1755446020206,0.003,118350.0,118340.0,1.27442883]
[1755446023482,0.003,118350.0,118340.0,1.0222475]
[1755446023681,0.003,118350.0,118340.0,1.27442883]
[1755446026061,0.003,118350.0,118340.0,1.0222475]
[1755446026817,0.00508,118350.0,118340.0,1.27131883]
[1755446028156,0.00818,118350.0,118340.0,1.27131883]
[1755446028700,0.00508,118350.0,118340.0,1.27131883]
[1755446028929,0.00508,118350.0,118340.0,1.27440883]
[1755446030577,0.00508,118350.0,118340.0,1.0222275]
[1755446030792,0.00508,118350.0,118340.0,1.27440883]
[1755446032321,0.00508,118350.0,118340.0,1.27131883]
[1755446033119,0.00508,118350.0,118340.0,1.27440883]
[1755446033544,0.00508,118350.0,118340.0,1.27131883]
[1755446033761,0.00508,118350.0,118340.0,0.7524375]
[1755446033978,0.00508,118350.0,118340.0,0.7555275]
[1755446034590,0.00508,118350.0,118340.0,1.00770883]
[1755446035005,0.00508,118350.0,118340.0,0.7555275]
[1755446035247,0.00508,118350.0,118340.0,1.00770883]
[1755446036939,0.00508,118350.0,118340.0,0.7555275]
[1755446039628,0.00508,118350.0,118340.0,1.0222275]
[1755446041920,0.003,118350.0,118340.0,1.27440883]
[1755446044427,0.003,118350.0,118340.0,1.0222275]
[1755446044641,0.003,118350.0,118340.0,1.27440883]
[1755446047426,0.003,118350.0,118340.0,1.0222275]
[1755446047711,0.003,118350.0,118340.0,1.27440883]
[1755446049932,0.003,118350.0,118340.0,1.0222275]
[1755446050052,0.003,118350.0,118340.0,1.27440883]
[1755446050263,0.003,118350.0,118340.0,1.0222275]
[1755446050467,0.003,118350.0,118340.0,1.27440883]
[1755446055552,0.003,118350.0,118340.0,1.0222275]
[1755446056018,0.003,118350.0,118340.0,1.27440883]
[1755446057155,0.003,118350.0,118340.0,1.0222275]
[1755446057355,0.003,118350.0,118340.0,1.27440883]
[1755446064716,0.003,118350.0,118340.0,1.0222275]
[1755446064957,0.003,118350.0,118340.0,1.27440883]
[1755446068218,0.003,118350.0,118340.0,1.00770883]
[1755446069078,0.003,118350.0,118340.0,0.7555275]
[1755446069295,0.003,118350.0,118340.0,1.00770883]
[1755446070454,0.003,118350.0,118340.0,0.7555275]
[1755446070671,0.003,118350.0,118340.0,1.00770883]
[1755446078798,0.003,118350.0,118340.0,0.7555275]
[1755446078952,0.003,118350.0,118340.0,1.00770883]
[1755446083963,0.003,118350.0,118340.0,1.27440883]
[1755446095854,0.003,118350.0,118340.0,1.0222275]
[1755446096037,0.003,118350.0,118340.0,1.27440883]
[1755446098031,0.003,118350.0,118340.0,1.31314661]
[1755446104488,0.003,118350.0,118340.0,1.56532794]
[1755446107729,0.003,118350.0,118340.0,1.29862794]
[1755446110237,0.003,118350.0,118340.0,0.79426528]
[1755446110454,0.003,118350.0,118340.0,1.29862794]
[1755446113033,0.003,118350.0,118340.0,0.79426528]
[1755446113554,0.003,118350.0,118340.0,1.29862794]
[1755446113767,0.003,118350.0,118340.0,1.06096528]
[1755446113993,0.003,118350.0,118340.0,1.56532794]
[1755446114437,0.003,118350.0,118340.0,1.31314661]
[1755446116806,0.003,118350.0,118340.0,1.56532794]
[1755446119369,0.003,118350.0,118340.0,1.31314661]
[1755446120473,0.003,118350.0,118340.0,1.56532794]
[1755446126652,0.003,118350.0,118340.0,1.31314661]
[1755446128855,0.003,118350.0,118340.0,1.56532794]
[1755446133110,0.003,118350.0,118340.0,1.31314661]
[1755446136396,0.003,118350.0,118340.0,1.56532794]
[1755446136618,0.003,118350.0,118340.0,1.60777696]
[1755446141933,0.003,118350.0,118340.0,4.49109796]
[1755446149134,0.003,118350.0,118340.0,4.48036196]
[1755446149343,0.003,118350.0,118340.0,4.48836196]
[1755446150063,0.002,118350.0,118340.0,4.48736196]
[1755446150864,0.002,118350.0,118340.0,4.51236196]
[1755446151293,0.00315,118370.0,118360.0,0.508976]
[1755446151505,0.00529,118370.0,118360.0,0.97461138]
[1755446152056,0.00529,118370.0,118360.0,1.26669238]
[1755446152810,0.00829,118370.0,118360.0,1.26769238]
[1755446153232,0.00829,118370.0,118360.0,1.01551105]
[1755446153464,0.01329,118370.0,118360.0,1.26869238]
[1755446153715,0.01329,118370.0,118360.0,1.52087371]
[1755446154494,0.01329,118370.0,118360.0,1.26869238]
[1755446156777,0.01329,118370.0,118360.0,1.27074238]
[1755446157213,0.01329,118370.0,118360.0,1.01856105]
[1755446157429,0.01329,118370.0,118360.0,1.27074238]
[1755446158847,0.01014,118370.0,118360.0,1.27074238]
[1755446159420,0.008,118370.0,118360.0,1.52597371]
[1755446162139,0.008,118370.0,118360.0,1.02161105]
[1755446162350,0.008,118370.0,118360.0,1.52597371]
[1755446163250,0.008,118370.0,118360.0,1.02161105]
[1755446163570,0.01015,118370.0,118360.0,1.02161105]
[1755446163796,0.01015,118370.0,118360.0,1.27074238]
[1755446166118,0.01015,118370.0,118360.0,1.27393238]
[1755446168412,0.01015,118370.0,118360.0,1.02175105]
[1755446168628,0.01015,118370.0,118360.0,1.27393238]
[1755446169267,0.01015,118370.0,118360.0,1.02175105]
[1755446169488,0.01015,118370.0,118360.0,1.27393238]
[1755446173580,0.01015,118370.0,118360.0,1.28193238]
[1755446174098,0.01015,118370.0,118360.0,1.27393238]
[1755446178695,0.008,118370.0,118360.0,1.27393238]
[1755446178943,0.008,118370.0,118360.0,1.52611371]
[1755446179098,0.008,118370.0,118360.0,1.53411371]
[1755446181121,0.008,118370.0,118360.0,1.02975105]
[1755446181333,0.008,118370.0,118360.0,1.53411371]
[1755446183630,0.008,118370.0,118360.0,1.28193238]
[1755446190017,0.008,118370.0,118360.0,1.53411371]
[1755446190627,0.008,118370.0,118360.0,1.28193238]
[1755446191266,0.00792938,118370.0,118360.0,1.28193238]
[1755446200101,0.00792938,118370.0,118360.0,1.27393238]
[1755446202896,0.00792938,118370.0,118360.0,1.52611371]
[1755446205073,0.005,118370.0,118360.0,1.52511371]
[1755446205311,0.005,118370.0,118360.0,1.53311371]
[1755446205497,0.008,118370.0,118360.0,1.53411371]
[1755446205723,0.003,118370.0,118360.0,1.53311371]
[1755446206107,0.006,118370.0,118360.0,1.53411371]
[1755446206512,0.003,118370.0,118360.0,1.53311371]
[1755446206769,0.003,118370.0,118360.0,2.73555971]
[1755446206977,0.003,118370.0,118360.0,2.46885971]
[1755446207189,0.003,118370.0,118360.0,2.49385971]
[1755446208259,0.006,118370.0,118360.0,2.49485971]
[1755446209136,0.003,118370.0,118360.0,2.49385971]
[1755446209582,0.002,118370.0,118360.0,2.49385971]
[1755446209796,0.002,118370.0,118360.0,2.49485971]
[1755446209988,0.004,118370.0,118360.0,2.49485971]
[1755446220712,0.004,118370.0,118360.0,1.81144905]
[1755446220937,0.004,118370.0,118360.0,1.86575471]
[1755446223221,0.004,118370.0,118360.0,2.13245471]
[1755446225243,0.004,118370.0,118360.0,2.12445471]
[1755446230219,0.004,118370.0,118360.0,2.13245471]
[1755446232436,0.004,118370.0,118360.0,1.62809205]
[1755446232615,0.004,118370.0,118360.0,2.13245471]
[1755446235221,0.004,118370.0,118360.0,1.62809205]
[1755446235434,0.004,118370.0,118360.0,2.13245471]
[1755446237667,0.004,118370.0,118360.0,2.14990373]
[1755446239111,0.004,118370.0,118360.0,2.14190373]
[1755446244187,0.004,118370.0,118360.0,2.14990373]
[1755446246847,0.004,118370.0,118360.0,1.88320373]
[1755446252648,0.004,118370.0,118360.0,2.14990373]
[1755446255833,0.004,118370.0,118360.0,1.64554107]
[1755446256056,0.004,118370.0,118360.0,2.14990373]
[1755446257152,0.004,118370.0,118360.0,1.64554107]
[1755446257359,0.004,118370.0,118360.0,2.14990373]
[1755446258167,0.004,118370.0,118360.0,2.14190373]
[1755446259769,0.00616,118370.0,118360.0,2.14190373]
[1755446260849,0.004,118370.0,118360.0,2.14190373]
[1755446263163,0.004,118370.0,118360.0,2.14990373]
[1755446272388,0.004,118370.0,118360.0,1.64554107]
[1755446272592,0.004,118370.0,118360.0,2.14990373]
[1755446275912,0.00616,118370.0,118360.0,2.14990373]
[1755446276338,0.004,118370.0,118360.0,2.14990373]
[1755446281304,0.004,118370.0,118360.0,1.64554107]
[1755446281511,0.004,118370.0,118360.0,2.14990373]
[1755446286958,0.00364955,118370.0,118360.0,2.14990373]
[1755446287172,0.00364955,118370.0,118360.0,2.14190373]
[1755446289454,0.00364955,118370.0,118360.0,2.39408506]
[1755446292107,0.00364955,118370.0,118360.0,2.40208506]
[1755446292538,0.00364955,118370.0,118360.0,2.14990373]
[1755446294548,0.00364955,118370.0,118360.0,1.64554107]
[1755446294750,0.00364955,118370.0,118360.0,2.14990373]
[1755446306956,0.00565955,118370.0,118360.0,1.88730473]
[1755446307188,0.00565955,118370.0,118360.0,2.01578473]
[1755446307696,0.00565955,118370.0,118360.0,1.91842773]
[1755446308207,0.00565955,118370.0,118360.0,1.91523773]
[1755446309730,0.00565955,118370.0,118360.0,1.91846773]
[1755446310749,0.00565955,118370.0,118360.0,1.81768873]
[1755446311751,0.00565955,118370.0,118360.0,1.80540973]
[1755446313873,0.00565955,118370.0,118360.0,1.30104707]
[1755446314023,0.00565955,118370.0,118360.0,1.80540973]
[1755446314259,0.00565955,118370.0,118360.0,1.69830473]
[1755446318096,0.00565955,118370.0,118360.0,1.69030473]
[1755446319317,0.00364955,118370.0,118360.0,1.69030473]
[1755446322188,0.00355987,118370.0,118360.0,1.69030473]
[1755446323171,0.00355987,118370.0,118360.0,1.69830473]
[1755446324140,0.00355987,118370.0,118360.0,1.69030473]
[1755446325144,0.00355987,118370.0,118360.0,1.94248606]
[1755446327640,0.00355987,118370.0,118360.0,1.69030473]
[1755446328454,0.00355987,118370.0,118360.0,1.56182473]
[1755446328675,0.00355987,118370.0,118360.0,1.69030473]
[1755446329103,0.00355987,118370.0,118360.0,1.69830473]
[1755446332904,0.00316,118380.0,118370.0,0.18641075]
[1755446333106,0.00523,118380.0,118370.0,0.69081975]
[1755446333744,0.00523,118380.0,118370.0,0.71619675]
[1755446334273,0.00823,118380.0,118370.0,0.71719675]
[1755446334395,0.01223,118380.0,118370.0,0.71819675]
[1755446335515,0.01223,118380.0,118370.0,0.98489675]
[1755446338394,0.01223,118380.0,118370.0,0.99289675]
[1755446339644,0.01223,118380.0,118370.0,0.99487675]
[1755446340224,0.01223,118380.0,118370.0,0.74269542]
[1755446340445,0.01223,118380.0,118370.0,0.99487675]
[1755446343245,0.00907,118380.0,118370.0,0.99487675]
[1755446347545,0.00907,118380.0,118370.0,0.99799675]
[1755446350134,0.00907,118380.0,118370.0,0.98999675]
[1755446355115,0.00907,118380.0,118370.0,0.99799675]
[1755446359780,0.00907,118380.0,118370.0,0.98999675]
[1755446364454,0.00907,118380.0,118370.0,0.86135675]
[1755446364681,0.00907,118380.0,118370.0,0.99783675]
[1755446364925,0.00907,118380.0,118370.0,0.85190773]
[1755446365204,0.26444133,118380.0,118370.0,0.7964064]
[1755446365421,0.68557011,118380.0,118370.0,0.41763278]
[1755446365651,0.43338878,118380.0,118370.0,0.41763278]
[1755446366080,0.26444133,118380.0,118370.0,0.41763278]
[1755446369802,0.01226,118380.0,118370.0,0.41763278]
[1755446370020,0.01437178,118380.0,118370.0,0.41763278]
[1755446370234,0.26655311,118380.0,118370.0,0.41763278]
[1755446370443,0.26444133,118380.0,118370.0,0.41763278]
[1755446371706,0.01226,118380.0,118370.0,0.41763278]
[1755446371867,0.26655311,118380.0,118370.0,0.41763278]
[1755446372086,0.26444133,118380.0,118370.0,0.41763278]
[1755446373317,0.26444133,118380.0,118370.0,0.40963278]
[1755446374856,0.26444133,118380.0,118370.0,0.28115278]
[1755446375065,0.26444133,118380.0,118370.0,0.40963278]
[1755446375614,0.26444133,118380.0,118370.0,0.28115278]
[1755446375839,0.26444133,118380.0,118370.0,0.40963278]
[1755446376505,0.26444133,118380.0,118370.0,0.28115278]
[1755446376710,0.26444133,118380.0,118370.0,0.40963278]
[1755446376909,0.26444133,118380.0,118370.0,0.28115278]
[1755446377112,0.26444133,118380.0,118370.0,0.40963278]
[1755446378297,0.01226,118380.0,118370.0,0.40963278]
[1755446378514,0.26655311,118380.0,118370.0,0.40963278]
[1755446378734,0.26444133,118380.0,118370.0,0.40963278]
[1755446379193,0.26444133,118380.0,118370.0,0.28115278]
[1755446379408,0.26444133,118380.0,118370.0,0.40963278]
[1755446379612,0.26444133,118380.0,118370.0,0.28115278]
[1755446379815,0.26444133,118380.0,118370.0,0.40963278]
[1755446380692,0.26444133,118380.0,118370.0,0.28115278]
[1755446380919,0.26444133,118380.0,118370.0,0.40963278]
[1755446382789,0.26444133,118380.0,118370.0,0.28115278]
[1755446382971,0.26444133,118380.0,118370.0,0.40963278]
[1755446383583,0.26444133,118380.0,118370.0,0.28115278]
[1755446383943,0.26444133,118380.0,118370.0,0.40963278]
[1755446385295,0.26125133,118380.0,118370.0,0.40963278]
[1755446385737,0.26125133,118380.0,118370.0,0.28115278]
[1755446385949,0.26125133,118380.0,118370.0,0.40963278]
[1755446388101,0.00907,118380.0,118370.0,0.40963278]
[1755446388383,0.01118178,118380.0,118370.0,0.40963278]
[1755446388567,0.26336311,118380.0,118370.0,0.40963278]
[1755446388770,0.26125133,118380.0,118370.0,0.40963278]
[1755446389009,0.00907,118380.0,118370.0,0.40963278]
[1755446389217,0.26336311,118380.0,118370.0,0.40963278]
[1755446389417,0.26125133,118380.0,118370.0,0.40963278]
[1755446390083,0.00907,118380.0,118370.0,0.40963278]
[1755446390289,0.01118178,118380.0,118370.0,0.40963278]
[1755446390495,0.26336311,118380.0,118370.0,0.41161278]
[1755446390695,0.26125133,118380.0,118370.0,0.41161278]
[1755446391165,0.00907,118380.0,118370.0,0.41161278]
[1755446391292,0.01118178,118380.0,118370.0,0.41161278]
[1755446391507,0.26336311,118380.0,118370.0,0.41161278]
[1755446391716,0.26125133,118380.0,118370.0,0.41161278]
[1755446392332,0.00907,118380.0,118370.0,0.41481278]
[1755446392538,0.01118178,118380.0,118370.0,0.41481278]
[1755446393617,0.00911178,118380.0,118370.0,0.66699411]
[1755446394917,0.00911178,118380.0,118370.0,0.41481278]
[1755446395114,0.00911178,118380.0,118370.0,0.66699411]
[1755446396399,0.00911178,118380.0,118370.0,0.41481278]
[1755446396659,0.00911178,118380.0,118370.0,0.66699411]
[1755446399243,0.00911178,118380.0,118370.0,0.41481278]
[1755446399449,0.00911178,118380.0,118370.0,0.66699411]
[1755446401253,0.00911178,118380.0,118370.0,0.41481278]
[1755446401462,0.00911178,118380.0,118370.0,0.66699411]
[1755446401882,0.007,118380.0,118370.0,0.66699411]
[1755446402120,0.007,118380.0,118370.0,1.25917544]
[1755446403228,0.007,118380.0,118370.0,1.28311544]
[1755446406905,1e-08,118380.0,118370.0,3.10667746]
[1755446407126,1e-08,118380.0,118370.0,3.09172346]
[1755446407765,1e-08,118380.0,118370.0,2.73316046]
[1755446408017,1e-08,118380.0,118370.0,1.95409946]
[1755446408228,0.00300001,118380.0,118370.0,1.88489946]
[1755446408785,0.00300001,118380.0,118370.0,1.28296211]
[1755446409004,0.00300001,118380.0,118370.0,1.54827944]
[1755446409220,1e-08,118380.0,118370.0,1.42677744]
[1755446409405,2.49167884,118400.0,118390.0,0.16893318]
[1755446409617,2.49370884,118400.0,118390.0,0.63440856]
[1755446410173,2.49370884,118400.0,118390.0,0.25374723]
[1755446410404,2.49669884,118400.0,118390.0,0.40760223]
[1755446410644,2.49669884,118400.0,118390.0,0.40765112]
[1755446411255,2.49769884,118400.0,118390.0,0.40865112]
[1755446411647,2.49769884,118400.0,118390.0,0.41703867]
[1755446411892,2.49769884,118400.0,118390.0,0.40865112]
[1755446412089,2.49470884,118400.0,118390.0,0.66083245]
[1755446412358,2.49670884,118400.0,118390.0,0.66602245]
[1755446412702,2.49467884,118400.0,118390.0,0.66602245]
[1755446412874,2.49467884,118400.0,118390.0,0.67446572]
[1755446414432,2.49467884,118400.0,118390.0,1.26664705]
[1755446414790,2.49467884,118400.0,118390.0,1.01446572]
[1755446415409,2.49267884,118400.0,118390.0,1.26664705]
[1755446415651,2.49267884,118400.0,118390.0,1.30456185]
[1755446415926,2.49367884,118400.0,118390.0,0.80019919]
[1755446416130,2.49367884,118400.0,118390.0,1.30456185]
[1755446416453,2.49367884,118400.0,118390.0,1.13584025]
[1755446417069,2.49267884,118400.0,118390.0,1.13484025]
[1755446417403,2.49367884,118400.0,118390.0,1.13584025]
[1755446418346,2.49367884,118400.0,118390.0,1.40254025]
[1755446418544,2.49367884,118400.0,118390.0,1.06689919]
[1755446418964,2.49367884,118400.0,118390.0,1.40254025]
[1755446419174,2.49367884,118400.0,118390.0,1.06689919]
[1755446419582,2.49367884,118400.0,118390.0,1.40254025]
[1755446423583,2.49367884,118400.0,118390.0,1.06689919]
[1755446423834,2.49367884,118400.0,118390.0,1.40254025]
[1755446424041,2.49367884,118400.0,118390.0,1.06689919]
[1755446424257,2.49367884,118400.0,118390.0,1.40254025]
[1755446428522,2.49367884,118400.0,118390.0,2.44255025]
[1755446429174,2.49367884,118400.0,118390.0,2.10690919]
[1755446429631,2.49367884,118400.0,118390.0,2.44255025]
[1755446430259,2.11123655,118400.0,118390.0,2.46755025]
[1755446430467,2.00893063,118400.0,118390.0,2.80319131]
[1755446430718,2.00893063,118400.0,118390.0,2.46755025]
[1755446431505,2.00793063,118400.0,118390.0,2.46655025]
[1755446431942,2.00893063,118400.0,118390.0,2.46855025]
[1755446432575,2.00793063,118400.0,118390.0,2.46855025]
[1755446434807,2.00793063,118400.0,118390.0,2.39518125]
[1755446435022,2.00793063,118400.0,118390.0,1.62462925]
[1755446435942,2.00998063,118400.0,118390.0,1.62462925]
[1755446436518,2.00998063,118400.0,118390.0,1.62150925]
[1755446436969,2.00793063,118400.0,118390.0,1.62450925]
[1755446440860,2.00793063,118400.0,118390.0,1.62450024]
[1755446441403,2.00793063,118400.0,118390.0,1.28886819]
[1755446441595,2.00793063,118400.0,118390.0,1.62450024]
[1755446442140,2.00793063,118400.0,118390.0,1.61650024]
[1755446443942,2.00986063,118400.0,118390.0,1.61350024]
[1755446446068,2.01283063,118400.0,118390.0,1.58671024]
[1755446446292,2.01283063,118400.0,118390.0,1.40654124]
[1755446446515,2.01283063,118400.0,118390.0,1.43154124]
[1755446447118,2.01283063,118400.0,118390.0,1.40654124]
[1755446447714,2.01283063,118400.0,118390.0,1.27786124]
[1755446447915,2.01283063,118400.0,118390.0,1.40764124]
[1755446448322,2.01283063,118400.0,118390.0,1.07200919]
[1755446448523,2.01283063,118400.0,118390.0,1.40764124]
[1755446452288,2.01283063,118400.0,118390.0,1.07200919]
[1755446452493,2.01283063,118400.0,118390.0,1.40764124]
[1755446457203,2.00986063,118400.0,118390.0,1.40764124]
[1755446457412,2.00986063,118400.0,118390.0,1.40968124]
[1755446458400,2.00986063,118400.0,118390.0,1.07404919]
[1755446458606,2.00986063,118400.0,118390.0,1.32581219]
[1755446461658,2.00986063,118400.0,118390.0,1.58057519]
[1755446462096,2.00793063,118400.0,118390.0,1.58057519]
[1755446463473,2.00793063,118400.0,118390.0,1.07704919]
[1755446463694,2.00793063,118400.0,118390.0,1.58057519]
[1755446464743,2.00989063,118400.0,118390.0,1.07704919]
[1755446464928,2.00989063,118400.0,118390.0,1.32881219]
[1755446465654,2.00989063,118400.0,118390.0,1.58057519]
[1755446467628,2.00989063,118400.0,118390.0,1.57257519]
[1755446469922,2.00989063,118400.0,118390.0,1.06904919]
[1755446470131,2.00989063,118400.0,118390.0,1.32081219]
[1755446471176,2.00793063,118400.0,118390.0,1.32081219]
[1755446471599,2.00793063,118400.0,118390.0,1.57257519]
[1755446471847,2.00793063,118400.0,118390.0,1.06904919]
[1755446472052,2.00793063,118400.0,118390.0,1.57257519]
[1755446472624,2.00793063,118400.0,118390.0,1.58057519]
[1755446473261,2.00989063,118400.0,118390.0,1.07704919]
[1755446473475,2.00989063,118400.0,118390.0,1.58057519]
[1755446474107,2.00989063,118400.0,118390.0,1.78333519]
[1755446476171,2.00989063,118400.0,118390.0,1.78133519]
[1755446476172,2.00889063,118400.0,118390.0,1.78133519]
[1755446476590,2.00989063,118400.0,118390.0,1.78333519]
[1755446476974,2.00889063,118400.0,118390.0,1.78333519]
[1755446477295,2.00889063,118400.0,118390.0,1.78533519]
[1755446477600,2.00889063,118400.0,118390.0,1.28180919]
[1755446477810,2.01185063,118400.0,118390.0,1.14808919]
[1755446478020,2.01185063,118400.0,118390.0,1.52857219]
[1755446478682,2.01185063,118400.0,118390.0,1.78033519]
[1755446478865,2.00889063,118400.0,118390.0,1.78557519]
[1755446479046,2.00693063,118400.0,118390.0,3.19043619]
[1755446479240,2.00693063,118400.0,118390.0,3.16337319]
[1755446479444,2.00693063,118400.0,118390.0,3.04838419]
[1755446483879,2.00693063,118400.0,118390.0,2.78058419]
[1755446484083,2.00693063,118400.0,118390.0,2.77058419]
[1755446487474,2.00693063,118400.0,118390.0,2.76258419]
[1755446489853,2.00693063,118400.0,118390.0,2.25905819]
[1755446490062,2.00693063,118400.0,118390.0,2.76258419]
[1755446492317,2.00693063,118400.0,118390.0,2.77058419]
[1755446495191,2.00693063,118400.0,118390.0,3.03838419]
[1755446495808,2.00693063,118400.0,118390.0,2.53485819]
[1755446496019,2.00693063,118400.0,118390.0,3.03838419]
[1755446497982,2.00693063,118400.0,118390.0,3.03038419]
[1755446501536,2.00693063,118400.0,118390.0,3.06338419]
[1755446501960,2.00693063,118400.0,118390.0,2.55985819]
[1755446502184,2.00693063,118400.0,118390.0,3.06338419]
[1755446502467,1.5565268,118400.0,118390.0,3.06338419]
[1755446502679,1.49103419,118400.0,118390.0,3.06338419]
[1755446502885,0.95761446,118400.0,118390.0,3.33259621]
[1755446503092,0.85759121,118400.0,118390.0,3.33259621]
[1755446503304,0.66005657,118400.0,118390.0,3.33259621]
[1755446503517,0.60010375,118400.0,118390.0,3.33259621]
[1755446504164,0.60010375,118400.0,118390.0,3.33219621]
[1755446504336,0.13734956,118400.0,118390.0,3.33019621]
[1755446504535,1e-08,118400.0,118390.0,3.33019621]
[1755446504765,1e-08,118400.0,118390.0,3.33319621]
[1755446505454,1e-08,118400.0,118390.0,3.33119621]
[1755446505806,1e-08,118400.0,118390.0,3.33419621]
[1755446506010,1e-08,118400.0,118390.0,2.57890721]
[1755446510001,1e-08,118400.0,118390.0,2.57770721]
[1755446523246,1e-08,118400.0,118390.0,2.56025819]
[1755446525542,1e-08,118400.0,118390.0,2.55225819]
[1755446530449,1e-08,118400.0,118390.0,2.56025819]
[1755446531544,1e-08,118400.0,118390.0,2.52234339]
[1755446537760,1e-08,118400.0,118390.0,2.51434339]
[1755446540418,1e-08,118400.0,118390.0,2.55199185]
[1755446542061,1e-08,118400.0,118390.0,2.28579185]
[1755446542922,1e-08,118400.0,118390.0,2.29379185]
[1755446544500,1e-08,118400.0,118390.0,2.28579185]
[1755446545521,1e-08,118400.0,118390.0,2.55199185]
[1755446549373,1e-08,118400.0,118390.0,2.55999185]
[1755446551482,1e-08,118400.0,118390.0,2.55589185]
[1755446560138,1e-08,118400.0,118390.0,2.54789185]
[1755446560344,0.00210001,118400.0,118390.0,2.54789185]
[1755446560654,0.00210001,118400.0,118390.0,3.05141785]
[1755446560850,0.00210001,118400.0,118390.0,2.91745785]
[1755446561027,0.00504001,118400.0,118390.0,3.04649785]
[1755446561227,0.00210001,118400.0,118390.0,3.04856785]
[1755446561445,0.00210001,118400.0,118390.0,3.05150785]
[1755446563496,1e-08,118400.0,118390.0,3.05150785]
[1755446564535,1e-08,118400.0,118390.0,3.30327085]
[1755446565336,1e-08,118400.0,118390.0,3.31127085]
[1755446569113,1e-08,118400.0,118390.0,3.31897085]
[1755446573640,1e-08,118400.0,118390.0,2.56368185]
[1755446573864,1e-08,118400.0,118390.0,3.31897085]
[1755446574077,1e-08,118400.0,118390.0,3.06720785]
[1755446577639,1e-08,118400.0,118390.0,2.56368185]
[1755446577874,1e-08,118400.0,118390.0,3.06720785]
[1755446579572,1e-08,118400.0,118390.0,2.56368185]
[1755446579792,1e-08,118400.0,118390.0,3.06720785]
[1755446581303,1e-08,118400.0,118390.0,3.31897085]
[1755446581514,1e-08,118400.0,118390.0,3.06720785]
[1755446581944,1e-08,118400.0,118390.0,2.56368185]
[1755446582175,1e-08,118400.0,118390.0,3.06720785]
[1755446582413,0.00504001,118400.0,118390.0,3.06219785]
[1755446582638,0.00210001,118400.0,118390.0,3.06219785]
[1755446582825,0.00210001,118400.0,118390.0,3.06430785]
[1755446583187,0.00210001,118400.0,118390.0,3.06746785]
[1755446583597,0.00210001,118400.0,118390.0,3.06430785]
[1755446583823,0.00210001,118400.0,118390.0,2.93526785]
[1755446584023,0.00526001,118400.0,118390.0,2.25761785]
[1755446584233,0.00526001,118400.0,118390.0,2.00585485]
[1755446584437,0.00526001,118400.0,118390.0,2.12845785]
[1755446584731,0.00526001,118400.0,118390.0,1.85169485]
[1755446584937,0.00526001,118400.0,118390.0,1.95717985]
[1755446585285,0.00526001,118400.0,118390.0,1.93217985]
[1755446586506,0.00526001,118400.0,118390.0,1.66623839]
[1755446586724,0.00526001,118400.0,118390.0,1.35593739]
[1755446586935,0.00737179,118400.0,118390.0,1.08613739]
[1755446587166,0.25913479,118400.0,118390.0,0.50437439]
[1755446587391,0.42594192,118400.0,118390.0,0.63345439]
[1755446587611,0.42594192,118400.0,118390.0,0.33544121]
[1755446587829,0.42594192,118400.0,118390.0,0.45611794]
[1755446588257,0.42594192,118400.0,118390.0,0.32699794]
[1755446588745,0.42594192,118400.0,118390.0,0.45611794]
[1755446588971,0.42594192,118400.0,118390.0,0.62505112]
[1755446589193,0.42594191,118400.0,118390.0,0.62205112]
[1755446589406,0.42694191,118400.0,118390.0,0.62105112]
[1755446589862,0.17417891,118400.0,118390.0,0.61905112]
[1755446590128,0.42594191,118400.0,118390.0,0.62005112]
[1755446590341,0.17517891,118400.0,118390.0,0.62005112]
[1755446590556,0.42694191,118400.0,118390.0,0.61905112]
[1755446590756,0.17517891,118400.0,118390.0,0.61905112]
[1755446590973,0.42794191,118400.0,118390.0,0.61905112]
[1755446591416,0.17617891,118400.0,118390.0,0.61905112]
[1755446591639,0.42794191,118400.0,118390.0,0.61905112]
[1755446593970,0.17617891,118400.0,118390.0,0.61905112]
[1755446594085,0.42794191,118400.0,118390.0,0.61905112]
[1755446595123,0.17617891,118400.0,118390.0,0.61905112]
[1755446595333,0.42794191,118400.0,118390.0,0.61905112]
[1755446600100,0.17617891,118400.0,118390.0,0.61905112]
[1755446600338,0.42794191,118400.0,118390.0,0.61905112]
[1755446604954,0.42794191,118400.0,118390.0,0.61105112]
[1755446607168,0.42794191,118400.0,118390.0,0.58567612]
[1755446607589,0.17617891,118400.0,118390.0,0.58567612]
[1755446607810,0.17617891,118400.0,118390.0,0.08486294]
[1755446607811,0.42794191,118400.0,118390.0,0.08486294]
[1755446608035,0.94891693,118400.0,118390.0,0.08486294]
[1755446608274,0.19362793,118400.0,118390.0,4.889e-05]
[1755446608489,0.69715393,118400.0,118390.0,4.889e-05]
[1755446609361,0.19362793,118400.0,118390.0,4.889e-05]
[1755446609801,0.69715393,118400.0,118390.0,4.889e-05]
[1755446610427,0.69615393,118400.0,118390.0,4.889e-05]
[1755446610626,0.69515393,118400.0,118390.0,4.889e-05]
[1755446610832,0.69715393,118400.0,118390.0,4.889e-05]
[1755446611032,0.70015393,118400.0,118390.0,0.00104889]
[1755446611239,0.19662793,118400.0,118390.0,0.00104889]
[1755446611440,0.95191693,118400.0,118390.0,0.00104889]
[1755446611668,0.70015393,118400.0,118390.0,0.00104889]
[1755446612063,0.71593949,118400.0,118390.0,0.00104889]
[1755446613133,0.21241349,118400.0,118390.0,0.00104889]
[1755446613350,0.71593949,118400.0,118390.0,0.00104889]
[1755446613562,0.78593949,118400.0,118390.0,0.00104889]
[1755446614034,0.28241349,118400.0,118390.0,0.00104889]
[1755446614249,0.78593949,118400.0,118390.0,0.00104889]
[1755446614462,0.78593949,118400.0,118390.0,4.889e-05]
[1755446614678,0.78093949,118400.0,118390.0,4.889e-05]
[1755446614894,0.78093949,118400.0,118390.0,0.00104889]
[1755446615114,0.78793949,118400.0,118390.0,0.00104889]
[1755446615336,0.78393949,118400.0,118390.0,4.889e-05]
[1755446615515,0.78093949,118400.0,118390.0,4.889e-05]
[1755446615726,0.78493949,118400.0,118390.0,0.00104889]
[1755446616160,0.78495022,118400.0,118390.0,0.00104889]